bitfinex/quotes_SOLUSD_20250619
["timestamp","ask_amount","ask_price","bid_price","bid_amount"]
[1750300735380,58.44425019,145.98,145.94,6.85213101]
[1750300735381,58.44425019,145.98,145.95,6.99309599]
[1750300735560,58.44425019,145.98,145.94,6.85213101]
[1750300735759,58.44425019,145.98,145.95,6.99309599]
[1750300736775,5.92,145.99,145.96,13.84428809]
[1750300737758,5.92,145.99,145.97,6.99309599]
[1750300738364,6.99309599,146.03,145.98,6.99309599]
[1750300738573,6.99309599,146.02,145.98,6.99309599]
[1750300738785,6.99309599,146.01,145.97,13.84348933]
[1750300739392,6.99309599,146.0,145.95,29.34798558]
[1750300739566,28.08,146.02,145.95,29.34798558]
[1750300739567,6.99309599,146.01,145.96,6.99309599]
[1750300740781,28.08,146.02,145.96,6.99309599]
[1750300740966,6.99309599,146.0,145.96,6.99309599]
[1750300741983,28.08,146.02,145.96,6.99309599]
[1750300742286,6.99309599,146.0,145.96,6.99309599]
[1750300742666,6.99309599,146.0,145.97,6.85072275]
[1750300743489,6.99309599,146.01,145.97,13.84381874]
[1750300743885,35.07309599,146.02,145.98,6.99309599]
[1750300744192,6.99309599,146.02,145.97,30.97062561]
[1750300744595,64.34425019,146.04,146.0,6.99309599]
[1750300744782,58.44425019,146.04,146.02,6.99309599]
[1750300744987,9.90887535,146.08,146.03,6.99309599]
[1750300745173,9.90887535,146.08,146.04,6.99309599]
[1750300745369,6.99309599,146.08,146.04,6.99309599]
[1750300746189,65.87345019,146.09,146.01,44.64964886]
[1750300746379,6.99309599,146.06,146.01,26.0]
[1750300746592,6.99309599,146.05,146.02,6.84837693]
[1750300747696,6.99309599,146.06,146.02,6.84837693]
[1750300748203,94.27345019,146.09,146.02,6.84837693]
[1750300748368,6.99309599,146.06,146.02,6.84837693]
[1750300748568,6.99309599,146.06,146.02,13.84147292]
[1750300749291,6.99309599,146.06,146.02,6.84837693]
[1750300749498,6.99309599,146.06,146.02,13.84147292]
[1750300749973,6.99309599,146.03,145.99,13.84280325]
[1750300750869,6.99309599,146.03,145.99,6.84970726]
[1750300751090,6.99309599,146.03,145.98,13.84320599]
[1750300751275,6.99309599,146.02,145.98,6.85011]
[1750300751490,26.0,146.08,146.01,6.99309599]
[1750300751699,26.0,146.08,146.02,6.99309599]
[1750300751700,6.99309599,146.07,146.02,6.99309599]
[1750300752278,6.99309599,146.07,146.03,6.84790796]
[1750300752480,6.99309599,146.06,146.03,6.84790796]
[1750300753318,6.99309599,146.07,146.03,6.84790796]
[1750300753489,7.4292,146.09,146.03,6.84790796]
[1750300753815,35.9092,146.09,146.03,6.84790796]
[1750300753979,6.99309599,146.07,146.03,6.84790796]
[1750300755595,35.9092,146.09,146.03,6.84790796]
[1750300755784,6.99309599,146.07,146.03,6.84790796]
[1750300756293,6.99309599,146.06,146.03,6.84790796]
[1750300757609,6.99309599,146.07,146.03,6.84790796]
[1750300758009,6.99309599,146.07,146.01,49.97083672]
[1750300758207,6.99309599,146.07,146.02,6.99309599]
[1750300758409,58.44425019,146.08,146.02,6.99309599]
[1750300758597,6.99309599,146.07,146.02,6.99309599]
[1750300759003,58.44425019,146.08,146.03,6.99309599]
[1750300759184,58.44425019,146.08,146.02,6.99309599]
[1750300759185,6.99309599,146.07,146.02,6.99309599]
[1750300760122,6.99309599,146.07,146.03,6.84790796]
[1750300760425,58.44425019,146.08,146.03,13.84100395]
[1750300760714,58.44425019,146.08,146.03,6.84790796]
[1750300760715,65.43734618,146.08,146.03,6.84790796]
[1750300760924,6.99309599,146.07,146.03,6.84790796]
[1750300762322,58.44425019,146.08,146.03,6.84790796]
[1750300762614,6.99309599,146.07,146.03,6.84790796]
[1750300763196,6.99309599,146.06,146.03,6.84790796]
[1750300763807,58.44425019,146.08,146.03,6.84790796]
[1750300764195,6.99309599,146.06,146.03,6.84790796]
[1750300765003,6.99309599,146.07,146.03,6.84790796]
[1750300766017,58.44425019,146.06,146.03,6.84790796]
[1750300766592,65.43734618,146.06,146.03,6.84790796]
[1750300767230,58.44425019,146.06,146.03,6.84790796]
[1750300767438,5.9,146.09,146.03,6.84790796]
[1750300767643,5.9,146.09,146.05,6.99309599]
[1750300768133,5.9,146.09,146.06,6.99309599]
[1750300768331,6.99309599,146.12,146.05,18.64964886]
[1750300768543,6.99309599,146.11,146.07,6.99309599]
[1750300769305,6.99309599,146.11,146.08,6.84556407]
[1750300770022,6.99309599,146.09,146.02,6.84837693]
[1750300770203,6.99309599,146.08,146.03,6.99309599]
[1750300770526,1.5722,146.12,146.04,6.99309599]
[1750300770721,6.99309599,146.08,146.04,6.99309599]
[1750300771108,1.5722,146.12,146.04,6.99309599]
[1750300771319,6.99309599,146.09,146.05,6.84697021]
[1750300771923,1.5722,146.12,146.05,6.84697021]
[1750300772115,6.99309599,146.09,146.05,6.84697021]
[1750300772319,1.5722,146.12,146.06,6.99309599]
[1750300772521,28.96,146.13,146.06,6.99309599]
[1750300772725,6.99309599,146.11,146.06,6.99309599]
[1750300773126,6.99309599,146.11,146.07,6.99309599]
[1750300773322,6.99309599,146.11,146.08,6.84556407]
[1750300773516,11.31471582,146.14,146.08,6.84556407]
[1750300773517,28.96,146.13,146.08,6.84556407]
[1750300773734,6.99309599,146.11,146.08,6.84556407]
[1750300774122,6.99309599,146.12,146.08,6.84556407]
[1750300774320,5.07471582,146.13,146.08,6.84556407]
[1750300774521,6.99309599,146.12,146.08,6.84556407]
[1750300775329,28.96,146.13,146.08,6.84556407]
[1750300775330,6.99309599,146.13,146.08,6.84556407]
[1750300775512,6.99309599,146.12,146.08,6.84556407]
[1750300776217,40.31471582,146.14,146.08,6.84556407]
[1750300776415,6.99309599,146.12,146.08,6.84556407]
[1750300776821,6.99309599,146.11,146.08,6.84556407]
[1750300777625,40.31471582,146.14,146.08,6.84556407]
[1750300777824,6.99309599,146.11,146.08,6.84556407]
[1750300778230,29.02,146.13,146.08,6.84556407]
[1750300778424,6.99309599,146.11,146.08,6.84556407]
[1750300780624,29.0,146.13,146.08,6.84556407]
[1750300780824,6.99309599,146.11,146.08,6.84556407]
[1750300781538,6.99309599,146.1,146.07,6.6023]
[1750300781749,6.99309599,146.09,146.06,1.5242]
[1750300781940,34.07471582,146.13,146.06,1.5242]
[1750300781941,5.07471582,146.12,146.06,1.5242]
[1750300782150,6.99309599,146.09,146.06,1.5242]
[1750300782529,6.99309599,146.09,146.06,8.37037801]
[1750300785034,6.99309599,146.09,146.06,6.84617801]
[1750300785326,6.99309599,146.07,146.03,1.5599]
[1750300785526,6.99309599,146.05,146.03,8.40766877]
[1750300785750,6.99309599,146.07,146.03,15.40076476]
[1750300786054,6.99309599,146.06,146.03,8.40766877]
[1750300788449,87.40425019,146.08,146.03,8.40766877]
[1750300788645,6.99309599,146.06,146.03,8.40766877]
[1750300789356,6.99309599,146.07,146.03,8.40766877]
[1750300792543,58.44425019,146.08,146.04,6.99309599]
[1750300793445,65.43734618,146.08,146.04,6.99309599]
[1750300793644,58.44425019,146.08,146.04,6.99309599]
[1750300794734,58.44425019,146.08,146.03,25.52743868]
[1750300794937,58.44425019,146.08,146.04,6.99309599]
[1750300795430,6.99309599,146.11,146.06,6.99309599]
[1750300795634,12.11320839,146.12,146.07,13.01049599]
[1750300796172,12.11320699,146.12,146.07,13.01049599]
[1750300796668,5.120111,146.12,146.08,6.84556407]
[1750300796848,65.43734618,146.13,146.08,13.83866006]
[1750300797052,6.99309599,146.12,146.08,6.84556407]
[1750300797356,65.43734618,146.13,146.08,13.83866006]
[1750300797754,6.99309599,146.12,146.08,6.84556407]
[1750300797966,58.44425019,146.13,146.08,15.47286006]
[1750300797967,65.43734618,146.13,146.08,15.47286006]
[1750300798139,65.43734618,146.13,146.08,32.58677024]
[1750300798140,58.44425019,146.13,146.08,32.58677024]
[1750300798460,65.43734618,146.13,146.08,32.58677024]
[1750300799062,65.43734618,146.13,146.09,6.99309599]
[1750300799257,58.44425019,146.13,146.09,6.99309599]
[1750300799462,65.43734618,146.13,146.09,6.99309599]
[1750300799665,58.44425019,146.13,146.09,6.99309599]
[1750300800346,58.44425019,146.13,146.08,25.59367425]
[1750300800566,65.43734618,146.13,146.08,32.58677024]
[1750300800866,65.43734618,146.13,146.08,15.47286006]
[1750300801053,58.44425019,146.13,146.08,8.47976407]
[1750300801248,6.99309599,146.12,146.08,8.47976407]
[1750300802465,58.44425019,146.13,146.08,8.47976407]
[1750300802666,6.58,146.14,146.1,6.99309599]
[1750300802867,13.57309599,146.14,146.09,6.99309599]
[1750300803073,13.57309599,146.14,146.1,6.84462696]
[1750300803868,6.58,146.14,146.1,30.94929036]
[1750300804240,6.58,146.14,146.12,6.99309599]
[1750300804447,6.99309599,146.17,146.13,6.3356]
[1750300804975,6.99309599,146.17,146.14,6.84275352]
[1750300805357,5.11772438,146.18,146.14,6.84275352]
[1750300805557,6.99309599,146.16,146.14,6.84275352]
[1750300808473,5.11772438,146.18,146.14,6.84275352]
[1750300808659,6.99309599,146.16,146.14,6.84275352]
[1750300808859,5.11772438,146.18,146.14,6.84275352]
[1750300809060,6.99309599,146.17,146.14,6.84275352]
[1750300809958,58.44425019,146.16,146.14,6.84275352]
[1750300813483,58.44425019,146.16,146.15,6.99309599]
[1750300813987,65.43734618,146.16,146.14,6.84275352]
[1750300814375,58.44425019,146.16,146.14,6.84275352]
[1750300817972,58.44425019,146.16,146.13,7.9079]
[1750300818170,6.99309599,146.14,146.09,6.2389]
[1750300818386,6.99309599,146.13,146.09,13.08381729]
[1750300818583,6.99309599,146.14,146.09,20.07691328]
[1750300818892,6.99309599,146.14,146.1,6.99309599]
[1750300819091,65.43734618,146.15,146.11,6.99309599]
[1750300819303,58.44425019,146.15,146.11,6.99309599]
[1750300819496,65.43734618,146.15,146.1,6.99309599]
[1750300819676,6.99309599,146.14,146.1,6.99309599]
[1750300820106,65.43734618,146.15,146.11,6.84415851]
[1750300820598,58.44425019,146.15,146.11,10.24979577]
[1750300820766,58.44425019,146.15,146.11,17.24289176]
[1750300821585,58.44425019,146.15,146.11,13.8372545]
[1750300824577,58.44425019,146.15,146.11,23.95455478]
[1750300824795,58.44425019,146.15,146.12,6.99309599]
[1750300824979,58.44425019,146.15,146.11,30.94765077]
[1750300825505,58.44425019,146.15,146.11,34.29310639]
[1750300826285,65.43734618,146.15,146.11,23.95455478]
[1750300826486,65.43734618,146.15,146.11,6.84415851]
[1750300826788,58.44425019,146.15,146.12,6.99309599]
[1750300828310,58.44425019,146.15,146.13,6.84322178]
[1750300830200,58.44425019,146.15,146.11,24.10349226]
[1750300830407,58.44425019,146.15,146.11,17.11039627]
[1750300830582,58.44425019,146.15,146.11,27.58596669]
[1750300831593,58.44425019,146.15,146.12,6.99309599]
[1750300831996,58.44425019,146.15,146.11,27.43702921]
[1750300832189,58.44425019,146.15,146.12,6.99309599]
[1750300834099,65.43734618,146.15,146.11,27.43702921]
[1750300834298,58.44425019,146.15,146.11,34.4301252]
[1750300834513,65.43734618,146.15,146.11,34.4301252]
[1750300834812,58.44425019,146.15,146.11,6.84415851]
[1750300835001,65.43734618,146.15,146.11,6.84415851]
[1750300835791,58.44425019,146.15,146.11,13.8372545]
[1750300836109,65.43734618,146.15,146.11,13.8372545]
[1750300836615,58.44425019,146.15,146.11,23.95455478]
[1750300836918,58.44425019,146.15,146.12,6.99309599]
[1750300838509,58.44425019,146.15,146.13,6.84322178]
[1750300840693,58.44425019,146.15,146.13,13.83631777]
[1750300841214,58.44425019,146.15,146.13,6.84322178]
[1750300843101,58.44425019,146.15,146.12,13.8367861]
[1750300844228,58.44425019,146.15,146.12,6.84369011]
[1750300844531,65.43734618,146.15,146.12,6.84369011]
[1750300847021,65.43734618,146.15,146.07,26.0]
[1750300847022,6.99309599,146.13,146.07,10.39997922]
[1750300847232,93.91734618,146.15,146.11,6.99309599]
[1750300847397,5.12931363,146.14,146.08,18.64964886]
[1750300847719,58.44425019,146.15,146.11,6.99309599]
[1750300848104,58.44425019,146.15,146.08,18.64964886]
[1750300848328,65.43734618,146.15,146.1,6.99309599]
[1750300849005,65.43734618,146.15,146.11,6.84415851]
[1750300849526,58.44425019,146.15,146.11,13.8372545]
[1750300849915,65.43734618,146.15,146.11,6.84415851]
[1750300850725,58.44425019,146.15,146.12,6.99309599]
[1750300851099,58.44425019,146.15,146.12,6.84369011]
[1750300851911,1.4566816,146.19,146.13,26.0]
[1750300852207,1.4566816,146.19,146.14,26.0]
[1750300852407,1.4566816,146.19,146.15,6.99309599]
[1750300852937,1.4566816,146.19,146.16,6.99309599]
[1750300853311,1.4566816,146.19,146.17,6.84134911]
[1750300853508,1.4566816,146.19,146.17,13.8344451]
[1750300854943,1.4566816,146.19,146.17,6.84134911]
[1750300858345,1.4566816,146.19,146.17,6.99309599]
[1750300858817,1.4566816,146.19,146.16,13.83491317]
[1750300860146,1.4566816,146.19,146.17,6.99309599]
[1750300860645,1.4566816,146.19,146.18,6.99309599]
[1750300861954,1.4566816,146.19,146.18,25.64274485]
[1750300862123,1.4566816,146.19,146.18,32.48362595]
[1750300864620,1.4566816,146.19,146.18,34.02422595]
[1750300865216,64.78425019,146.26,146.21,26.0]
[1750300865435,64.78425019,146.26,146.24,6.99309599]
[1750300865641,64.78425019,146.26,146.23,6.99309599]
[1750300867150,64.78425019,146.26,146.24,6.83807439]
[1750300868949,64.78425019,146.26,146.23,6.99309599]
[1750300869939,58.44425019,146.26,146.23,6.99309599]
[1750300870941,58.44425019,146.26,146.24,6.83807439]
[1750300877052,58.44425019,146.26,146.22,13.831644]
[1750300877259,65.43734618,146.26,146.22,6.83854801]
[1750300877557,58.44425019,146.26,146.22,6.83854801]
[1750300877857,65.43734618,146.26,146.22,6.83854801]
[1750300878066,88.44505019,146.26,146.21,32.83932986]
[1750300878246,6.99309599,146.24,146.21,6.83932986]
[1750300878557,6.99309599,146.24,146.21,26.0]
[1750300879435,6.99309599,146.24,146.21,32.83926731]
[1750300879638,6.99309599,146.24,146.22,26.0]
[1750300879855,6.99309599,146.24,146.14,16.50114078]
[1750300879856,65.43734618,146.23,146.14,16.50114078]
[1750300880064,6.99309599,146.19,146.15,6.84228532]
[1750300882048,6.99309599,146.17,146.13,6.84322178]
[1750300882239,30.0055,146.2,146.14,6.99309599]
[1750300882240,6.28,146.18,146.14,6.99309599]
[1750300882436,8.61859599,146.2,146.15,6.99309599]
[1750300882651,41.65309599,146.21,146.16,6.99309599]
[1750300882959,6.99309599,146.2,146.15,6.99309599]
[1750300883155,6.99309599,146.2,146.16,6.84181718]
[1750300884733,6.99309599,146.19,146.16,6.84181718]
[1750300885345,6.99309599,146.19,146.15,6.84228532]
[1750300886641,6.99309599,146.19,146.14,6.99309599]
[1750300886842,58.44425019,146.18,146.14,6.99309599]
[1750300887155,58.44425019,146.18,146.11,23.95455478]
[1750300887156,65.43734618,146.18,146.13,6.99309599]
[1750300888567,65.43734618,146.18,146.14,6.84275352]
[1750300889259,6.99309599,146.17,146.14,6.84275352]
[1750300890863,65.43734618,146.18,146.13,13.83631777]
[1750300891160,6.99309599,146.17,146.13,6.84322178]
[1750300891541,6.99309599,146.16,146.13,6.84322178]
[1750300891739,58.44425019,146.15,146.13,6.84322178]
[1750300893046,58.44425019,146.15,146.12,6.99309599]
[1750300895068,58.44425019,146.15,146.13,6.84322178]
[1750300900072,58.44425019,146.15,146.14,6.99309599]
[1750300901770,58.44425019,146.15,146.14,13.83584951]
[1750300902966,58.44425019,146.15,146.14,6.84275352]
[1750300903282,58.44425019,146.15,146.14,13.83584951]
[1750300904688,29.8893,146.18,146.12,6.99309599]
[1750300904871,29.8893,146.18,146.13,6.99309599]
[1750300904872,1.5893,146.18,146.13,6.99309599]
[1750300905369,8.58239599,146.18,146.13,6.99309599]
[1750300906686,8.58239599,146.18,146.14,6.84275352]
[1750300907385,60.08725019,146.21,146.14,13.83584951]
[1750300907560,58.44425019,146.2,146.14,13.83584951]
[1750300907764,6.99309599,146.19,146.14,13.83584951]
[1750300907990,6.99309599,146.19,146.14,6.84275352]
[1750300908297,58.44425019,146.26,146.17,6.99309599]
[1750300908598,6.99309599,146.23,146.19,6.99309599]
[1750300908886,6.99309599,146.23,146.19,6.83995668]
[1750300913474,58.44425019,146.22,146.19,6.83995668]
[1750300914877,58.44425019,146.22,146.16,23.94577964]
[1750300915088,58.44425019,146.21,146.18,6.99309599]
[1750300916106,58.44425019,146.21,146.16,23.94577964]
[1750300916283,58.44425019,146.21,146.19,6.84041316]
[1750300919468,58.44425019,146.21,146.16,23.94577964]
[1750300919673,58.44425019,146.21,146.18,6.99309599]
[1750300920628,58.44425019,146.21,146.19,6.84041316]
[1750300923493,6.99309599,146.2,146.17,6.84134911]
[1750300924308,58.44425019,146.21,146.17,6.84134911]
[1750300924309,65.43734618,146.21,146.17,6.84134911]
[1750300924480,58.44425019,146.21,146.17,13.8344451]
[1750300925083,65.43734618,146.21,146.17,6.84134911]
[1750300925280,65.43734618,146.21,146.17,13.8344451]
[1750300926697,58.44425019,146.21,146.17,13.8344451]
[1750300929616,58.44425019,146.21,146.14,42.59928619]
[1750300929829,58.44425019,146.2,146.17,6.99309599]
[1750300930618,58.44425019,146.2,146.18,6.99309599]
[1750300931685,58.44425019,146.2,146.19,6.84041316]
[1750300935797,58.44425019,146.2,146.18,4.45162437]
[1750300936525,58.44425019,146.26,146.2,18.64964886]
[1750300936821,58.44425019,146.26,146.23,4.45162437]
[1750300937025,58.44425019,146.26,146.22,4.45162437]
[1750300937815,58.44425019,146.26,146.23,6.83854202]
[1750300939018,6.95147394,146.25,146.22,6.83898658]
[1750300939225,6.95147394,146.24,146.22,6.83898658]
[1750300939402,6.95147394,146.25,146.22,6.83898658]
[1750300939914,6.95147394,146.25,146.21,13.7909514]
[1750300940106,6.95147394,146.25,146.21,6.83947746]
[1750300940502,6.95147394,146.24,146.21,6.83947746]
[1750300941326,86.56425019,146.26,146.21,6.83947746]
[1750300941528,6.95147394,146.23,146.21,6.83947746]
[1750300941717,58.44425019,146.22,146.21,6.83947746]
[1750300942019,58.44425019,146.22,146.2,6.83994528]
[1750300944535,58.44425019,146.22,146.2,6.95147394]
[1750300946104,58.44425019,146.22,146.21,6.83947746]
[1750300948934,58.44425019,146.22,146.21,13.7909514]
[1750300950709,58.44425019,146.22,146.21,6.83947746]
[1750300951033,58.44425019,146.22,146.21,6.95147394]
[1750300951210,58.44425019,146.22,146.19,17.10098832]
[1750300951407,58.44425019,146.22,146.21,6.95147394]
[1750300952332,58.44425019,146.22,146.21,13.7909514]
[1750300952920,58.44425019,146.22,146.21,38.55710026]
[1750300954328,6.14,146.26,146.21,55.65579391]
[1750300954530,6.14,146.26,146.24,6.95147394]
[1750300956629,6.14,146.26,146.25,6.83760683]
[1750300959009,6.14,146.26,146.22,13.79048365]
[1750300959215,13.09147394,146.26,146.22,6.83900971]
[1750300962218,6.14,146.26,146.22,6.83900971]
[1750300962561,6.14,146.26,146.24,6.95147394]
[1750300962758,6.14,146.26,146.25,6.83760683]
[1750300965045,6.14,146.26,146.24,6.83807439]
[1750300972749,13.09147394,146.26,146.22,26.0]
[1750300972935,6.14,146.26,146.22,26.0]
[1750300973133,10.58993719,146.26,146.22,30.44993719]
[1750300973932,10.58993719,146.26,146.23,6.83854202]
[1750300974953,6.14,146.26,146.23,6.83854202]
[1750300976547,18.20729103,146.26,146.22,13.79090234]
[1750300978455,58.44425019,146.25,146.22,13.79090234]
[1750300978839,58.44425019,146.25,146.21,6.83931991]
[1750300979047,58.44425019,146.25,146.21,13.7912308]
[1750300979048,58.44425019,146.24,146.21,13.7912308]
[1750300979366,58.44425019,146.24,146.2,6.95191089]
[1750300980166,58.44425019,146.24,146.21,6.95191089]
[1750300980931,58.44425019,146.24,146.21,13.79100613]
[1750300981347,58.44425019,146.24,146.22,6.95191089]
[1750300982941,58.44425019,146.24,146.22,13.79065052]
[1750300985558,58.44425019,146.24,146.19,17.09995046]
[1750300985744,58.44425019,146.24,146.22,6.95191089]
[1750300986235,58.44425019,146.24,146.18,6.8408811]
[1750300986445,58.44425019,146.23,146.18,6.8408811]
[1750300986750,58.44425019,146.23,146.22,6.95191089]
[1750300987265,58.44425019,146.23,146.18,23.94308386]
[1750300987442,58.44425019,146.23,146.21,6.95191089]
[1750300987758,58.44425019,146.23,146.18,17.10220276]
[1750300988065,58.44425019,146.23,146.2,6.95191089]
[1750300989673,58.44425019,146.23,146.19,13.79222581]
[1750300989835,58.44425019,146.23,146.2,6.95191089]
[1750300993248,58.44425019,146.22,146.2,6.95191089]
[1750300993434,58.44425019,146.21,146.19,6.95191089]
[1750300993640,58.44425019,146.21,146.18,13.79271156]
[1750300994868,58.44425019,146.2,146.17,4.451843]
[1750300995162,58.44425019,146.19,146.16,11.29322781]
[1750300996155,58.44425019,146.19,146.17,4.451843]
[1750300997284,58.44425019,146.19,146.17,11.29315436]
[1750300997840,58.44425019,146.19,146.16,11.29347937]
[1750300998360,58.44425019,146.19,146.16,4.451843]
[1750300998746,58.44425019,146.19,146.16,11.29361136]
[1750300998965,62.89609319,146.19,146.15,4.451843]
[1750300999181,62.89609319,146.19,146.14,11.29459652]
[1750300999182,58.44425019,146.18,146.14,11.29459652]
[1750300999354,58.44425019,146.17,146.14,11.29459652]
[1750301001866,58.44425019,146.17,146.13,17.10696007]
[1750301002476,58.44425019,146.16,146.14,4.451843]
[1750301002845,58.44425019,146.16,146.12,6.84369011]
[1750301003041,58.44425019,146.16,146.13,4.451843]
[1750301004348,58.44425019,146.16,146.13,11.29461804]
[1750301005178,4.451843,146.17,146.13,6.84277504]
[1750301005179,58.44425019,146.15,146.13,6.84277504]
[1750301006577,58.44425019,146.15,146.11,4.451843]
[1750301007688,58.44425019,146.14,146.11,4.451843]
[1750301007893,58.44425019,146.14,146.1,11.29646996]
[1750301008211,4.451843,146.15,146.1,11.29646996]
[1750301008212,58.44425019,146.13,146.1,11.29646996]
[1750301008569,58.44425019,146.13,146.1,6.84462696]
[1750301008770,58.44425019,146.13,146.1,11.29646996]
[1750301009571,58.44425019,146.13,146.11,4.451843]
[1750301010300,58.44425019,146.13,146.09,23.95779241]
[1750301010301,58.44425019,146.13,146.1,4.451843]
[1750301010511,58.44425019,146.13,146.09,11.29693848]
[1750301011189,58.44425019,146.12,146.1,4.451843]
[1750301011372,58.44425019,146.12,146.09,11.29693848]
[1750301011774,58.44425019,146.12,146.1,4.451843]
[1750301012520,58.44425019,146.12,146.09,4.451843]
[1750301013677,58.44425019,146.12,146.09,11.29660066]
[1750301013890,58.44425019,146.12,146.09,6.84475766]
[1750301014091,58.44425019,146.12,146.09,11.29660066]
[1750301015106,58.44425019,146.12,146.1,4.451843]
[1750301015694,58.44425019,146.12,146.1,11.29633754]
[1750301015901,58.44425019,146.12,146.11,4.451843]
[1750301016293,58.44425019,146.12,146.1,6.84449454]
[1750301016503,58.44425019,146.12,146.1,11.29633754]
[1750301020589,58.44425019,146.12,146.11,23.10149186]
[1750301020936,6.06,146.19,146.15,26.0]
[1750301021093,5.60188556,146.21,146.18,4.451843]
[1750301021590,90.99609319,146.23,146.18,4.451843]
[1750301022006,90.99609319,146.23,146.15,26.0]
[1750301022208,90.99609319,146.23,146.18,4.451843]
[1750301022209,62.89609319,146.23,146.18,4.451843]
[1750301022410,58.44425019,146.23,146.19,4.451843]
[1750301022726,58.44425019,146.23,146.2,11.29147832]
[1750301022926,58.44425019,146.23,146.2,13.79333032]
[1750301023903,58.44425019,146.23,146.21,6.953695]
[1750301024425,58.44425019,146.23,146.2,13.79333032]
[1750301028403,58.44425019,146.23,146.21,6.953695]
[1750301029709,58.44425019,146.23,146.21,13.79280536]
[1750301032494,58.44425019,146.23,146.21,6.953695]
[1750301032706,58.44425019,146.23,146.2,13.79351035]
[1750301032902,58.44425019,146.23,146.2,6.83981535]
[1750301033105,58.44425019,146.23,146.2,13.79351035]
[1750301034501,58.44425019,146.23,146.21,6.953695]
[1750301035824,58.44425019,146.23,146.21,13.79301661]
[1750301037537,58.44425019,146.23,146.2,6.953695]
[1750301038524,58.44425019,146.23,146.21,6.83947746]
[1750301038910,58.44425019,146.23,146.19,6.84041316]
[1750301039113,58.44425019,146.23,146.2,6.953695]
[1750301040752,58.44425019,146.23,146.2,13.79319801]
[1750301042732,58.44425019,146.23,146.18,17.10210363]
[1750301043038,58.44425019,146.23,146.2,4.45061304]
[1750301043928,58.44425019,146.23,146.18,17.10210363]
[1750301044134,58.44425019,146.23,146.2,4.45061304]
[1750301044840,58.44425019,146.23,146.2,11.29054944]
[1750301045336,62.89486323,146.23,146.19,11.2910207]
[1750301045541,62.89486323,146.23,146.19,6.84040766]
[1750301045542,90.97486323,146.23,146.19,6.84040766]
[1750301045835,90.97486323,146.23,146.18,11.29129691]
[1750301046639,58.44425019,146.22,146.18,11.29129691]
[1750301047141,90.95486323,146.21,146.16,11.2921359]
[1750301047641,58.44425019,146.2,146.16,11.2921359]
[1750301047838,58.44425019,146.19,146.16,11.2921359]
[1750301048836,58.44425019,146.19,146.16,6.95757379]
[1750301050239,58.44425019,146.19,146.16,13.79928926]
[1750301050421,58.44425019,146.19,146.16,6.84171547]
[1750301050743,58.44425019,146.19,146.16,13.79928926]
[1750301051143,58.44425019,146.19,146.16,6.84171547]
[1750301051341,58.44425019,146.19,146.16,6.95757379]
[1750301052538,58.44425019,146.19,146.16,13.79926593]
[1750301057435,58.44425019,146.19,146.17,6.95757379]
[1750301057638,58.44425019,146.19,146.16,6.84169214]
[1750301057848,58.44425019,146.19,146.18,6.95757379]
[1750301058538,58.44425019,146.19,146.18,13.79845489]
[1750301058925,58.44425019,146.19,146.18,6.8408811]
[1750301059943,58.44425019,146.19,146.17,6.95757379]
[1750301061046,58.44425019,146.19,146.15,17.10554151]
[1750301061241,58.44425019,146.19,146.18,6.8408811]
[1750301064730,58.44425019,146.19,146.17,6.95757379]
[1750301065739,58.44425019,146.19,146.18,6.8408811]
[1750301067454,58.44425019,146.19,146.15,17.10554151]
[1750301067657,58.44425019,146.19,146.17,6.95757379]
[1750301068858,58.44425019,146.19,146.18,6.8408811]
[1750301070038,58.44425019,146.19,146.17,6.84134911]
[1750301071245,58.44425019,146.19,146.17,11.29354039]
[1750301072576,58.44425019,146.19,146.17,4.15519498]
[1750301073264,58.44425019,146.19,146.15,17.10554151]
[1750301073450,58.44425019,146.19,146.17,4.15519498]
[1750301074863,58.44425019,146.19,146.18,6.8408811]
[1750301075865,58.44425019,146.24,146.19,18.64964886]
[1750301076068,58.44425019,146.24,146.18,29.73227884]
[1750301076069,62.59944517,146.24,146.2,4.15519498]
[1750301076372,4.15519498,146.23,146.19,4.15519498]
[1750301076738,62.59944517,146.22,146.18,10.99607608]
[1750301077665,62.59944517,146.22,146.19,4.15519498]
[1750301077666,58.44425019,146.22,146.19,4.15519498]
[1750301079573,58.44425019,146.22,146.19,10.99534269]
[1750301080143,58.44425019,146.22,146.19,6.84014771]
[1750301080444,58.44425019,146.22,146.19,10.99534269]
[1750301081980,58.44425019,146.21,146.19,10.99534269]
[1750301082470,58.44425019,146.21,146.2,4.15519498]
[1750301082847,58.44425019,146.21,146.19,10.99534269]
[1750301084475,58.44425019,146.21,146.17,35.75292184]
[1750301084476,58.44425019,146.21,146.18,6.8408811]
[1750301084677,58.44425019,146.21,146.19,4.15519498]
[1750301086072,58.44425019,146.21,146.2,6.83994528]
[1750301086976,58.44425019,146.21,146.18,6.8408811]
[1750301087146,58.44425019,146.21,146.18,10.99607608]
[1750301087852,58.44425019,146.2,146.18,10.99607608]
[1750301088166,58.44425019,146.2,146.19,4.15519498]
[1750301089373,58.44425019,146.2,146.19,10.99560814]